[Event "Early-Titled-Tuesday-Blitz-June-18-2024"]
[Site "Chess.com"]
[Date "2024.06.18"]
[Round "3"]
[White "Roland_Garros_2024"]
[Black "ShahMatKanal"]
[Result "0-1"]
[WhiteElo "2235"]
[BlackElo "2470"]
[TimeControl "180+1"]
[EndTime "8:29:37 PDT"]
[Termination "ShahMatKanal won on time"]

1. e4 {[%clk 0:03:00.9]} 1... c5 {[%clk 0:02:58.8]} 2. Nf3 {[%clk 0:03:01.1]}
2... d6 {[%clk 0:02:58]} 3. d4 {[%clk 0:03:01.5]} 3... cxd4 {[%clk 0:02:57.8]}
4. Nxd4 {[%clk 0:03:02.4]} 4... Nf6 {[%clk 0:02:57.9]} 5. Nc3 {[%clk 0:03:03.1]}
5... a6 {[%clk 0:02:58.4]} 6. Bg5 {[%clk 0:03:03.3]} 6... e6 {[%clk 0:02:58.1]}
7. f4 {[%clk 0:03:03.7]} 7... Be7 {[%clk 0:02:58.1]} 8. Qf3 {[%clk 0:03:04.1]}
8... h6 {[%clk 0:02:58.6]} 9. Bh4 {[%clk 0:03:03.1]} 9... Qc7 {[%clk 0:02:58.8]}
10. O-O-O {[%clk 0:03:01.2]} 10... Nc6 {[%clk 0:02:56.4]} 11. Nxc6 {[%clk
0:02:56.9]} 11... Qxc6 {[%clk 0:02:52]} 12. Be2 {[%clk 0:02:45.7]} 12... Bd7
{[%clk 0:02:42.4]} 13. e5 {[%clk 0:02:30.4]} 13... dxe5 {[%clk 0:02:05.5]} 14.
fxe5 {[%clk 0:02:27.6]} 14... Nd5 {[%clk 0:02:00.7]} 15. Rxd5 {[%clk 0:01:26.7]}
15... Bxh4 {[%clk 0:01:52.8]} 16. Rd6 {[%clk 0:01:18.8]} 16... Qc7 {[%clk
0:01:03.5]} 17. Kb1 {[%clk 0:00:52]} 17... O-O {[%clk 0:01:00]} 18. Qg4 {[%clk
0:00:31.7]} 18... Be7 {[%clk 0:00:58.2]} 19. Rd3 {[%clk 0:00:16.7]} 19... f5
{[%clk 0:00:52.3]} 20. exf6 {[%clk 0:00:16.1]} 20... Bxf6 {[%clk 0:00:51.8]} 21.
Ne4 {[%clk 0:00:16]} 21... Rac8 {[%clk 0:00:49.9]} 22. Nxf6+ {[%clk 0:00:15.7]}
22... Rxf6 {[%clk 0:00:50.8]} 23. c3 {[%clk 0:00:15.7]} 23... Bc6 {[%clk
0:00:29.8]} 24. Rhd1 {[%clk 0:00:13]} 24... Rcf8 {[%clk 0:00:29.6]} 25. Rg3
{[%clk 0:00:12.5]} 25... Qe7 {[%clk 0:00:26.2]} 26. Bc4 {[%clk 0:00:12.4]} 26...
Kh8 {[%clk 0:00:25.4]} 27. Re1 {[%clk 0:00:12.3]} 27... Bd7 {[%clk 0:00:24.7]}
28. a3 {[%clk 0:00:10.8]} 28... b5 {[%clk 0:00:24.8]} 29. Bb3 {[%clk 0:00:07.6]}
29... Qf7 {[%clk 0:00:25.2]} 30. Bc2 {[%clk 0:00:07.5]} 30... e5 {[%clk
0:00:22.1]} 31. Qe4 {[%clk 0:00:06.7]} 31... Bf5 {[%clk 0:00:22.5]} 32. Qxe5
{[%clk 0:00:06.5]} 32... Bxc2+ {[%clk 0:00:23.4]} 33. Kxc2 {[%clk 0:00:06.8]}
33... Rf2+ {[%clk 0:00:24.2]} 34. Kb1 {[%clk 0:00:06.8]} 34... Rg8 {[%clk
0:00:23.1]} 35. Qe7 {[%clk 0:00:05]} 35... Qb3 {[%clk 0:00:21.4]} 36. Re2 {[%clk
0:00:02.4]} 36... Qd1+ {[%clk 0:00:21.2]} 37. Ka2 {[%clk 0:00:02.5]} 37... Rxe2
{[%clk 0:00:20.5]} 38. Qh4 {[%clk 0:00:01.1]} 38... Qd5+ {[%clk 0:00:19.9]} 0-1

[Event "Early-Titled-Tuesday-Blitz-June-18-2024"]
[Site "Chess.com"]
[Date "2024.06.18"]
[Round "3"]
[White "Boundless_Strike"]
[Black "elamier"]
[Result "0-1"]
[WhiteElo "2653"]
[BlackElo "2480"]
[TimeControl "180+1"]
[EndTime "8:29:38 PDT"]
[Termination "elamier won by checkmate"]

1. d4 {[%clk 0:00:05.6]} 1... Nf6 {[%clk 0:02:53.8]} 2. f3 {[%clk 0:00:05.2]}
2... d5 {[%clk 0:02:53.4]} 3. e4 {[%clk 0:00:05.9]} 3... dxe4 {[%clk 0:02:50.5]}
4. Nc3 {[%clk 0:00:06.6]} 4... exf3 {[%clk 0:02:47.1]} 5. Nxf3 {[%clk
0:00:07.5]} 5... Bf5 {[%clk 0:02:45.7]} 6. Ne5 {[%clk 0:00:07.4]} 6... c6 {[%clk
0:02:38.7]} 7. g4 {[%clk 0:00:06.7]} 7... Be6 {[%clk 0:02:28.7]} 8. g5 {[%clk
0:00:06.6]} 8... Nd5 {[%clk 0:02:29.4]} 9. Ne4 {[%clk 0:00:07.1]} 9... Bf5
{[%clk 0:02:21.5]} 10. Bg2 {[%clk 0:00:06.8]} 10... e6 {[%clk 0:02:07.3]} 11. c3
{[%clk 0:00:06.5]} 11... Nd7 {[%clk 0:02:05.2]} 12. Qf3 {[%clk 0:00:06.9]} 12...
Nxe5 {[%clk 0:01:54.8]} 13. dxe5 {[%clk 0:00:07.8]} 13... Qb6 {[%clk 0:01:51.8]}
14. Bf4 {[%clk 0:00:08.5]} 14... Qxb2 {[%clk 0:01:50.6]} 15. O-O {[%clk
0:00:08.8]} 15... Nxf4 {[%clk 0:01:37.3]} 16. Qxf4 {[%clk 0:00:09.2]} 16... Qb6+
{[%clk 0:01:36.2]} 17. Kh1 {[%clk 0:00:09.1]} 17... Be7 {[%clk 0:01:32.9]} 18.
Nd6+ {[%clk 0:00:09.5]} 18... Bxd6 {[%clk 0:01:32.8]} 19. exd6 {[%clk
0:00:10.4]} 19... O-O {[%clk 0:01:31.6]} 20. Rad1 {[%clk 0:00:10.5]} 20... Rad8
{[%clk 0:01:31.1]} 21. c4 {[%clk 0:00:10]} 21... Qc5 {[%clk 0:01:24.7]} 22. Rfe1
{[%clk 0:00:10]} 22... f6 {[%clk 0:01:01.4]} 23. gxf6 {[%clk 0:00:10.1]} 23...
Rxf6 {[%clk 0:01:02.3]} 24. Re5 {[%clk 0:00:10.1]} 24... Qa3 {[%clk 0:00:55.9]}
25. Qd2 {[%clk 0:00:10]} 25... Bg4 {[%clk 0:00:42.6]} 26. Rde1 {[%clk
0:00:10.3]} 26... Qxd6 {[%clk 0:00:40.9]} 27. Qg5 {[%clk 0:00:11]} 27... Bf5
{[%clk 0:00:33.3]} 28. c5 {[%clk 0:00:11.5]} 28... Qf8 {[%clk 0:00:31.3]} 29.
Qg3 {[%clk 0:00:11.7]} 29... Rd3 {[%clk 0:00:31]} 30. Qg5 {[%clk 0:00:11.2]}
30... h6 {[%clk 0:00:31.1]} 31. Qc1 {[%clk 0:00:10.8]} 31... Qd8 {[%clk
0:00:27.7]} 32. Qb2 {[%clk 0:00:07.3]} 32... Rd2 {[%clk 0:00:27.3]} 33. Qxb7
{[%clk 0:00:07.6]} 33... Rg6 {[%clk 0:00:27.2]} 34. Bf3 {[%clk 0:00:07]} 34...
Qh4 {[%clk 0:00:26.7]} 35. R5e2 {[%clk 0:00:06]} 35... Qf4 {[%clk 0:00:19.4]}
36. Qxc6 {[%clk 0:00:06]} 36... Rxe2 {[%clk 0:00:18.9]} 37. Rxe2 {[%clk
0:00:06.5]} 37... Qc1+ {[%clk 0:00:17.1]} 38. Re1 {[%clk 0:00:06.2]} 38... Qxe1#
{[%clk 0:00:17.5]} 0-1

[Event "Early-Titled-Tuesday-Blitz-June-18-2024"]
[Site "Chess.com"]
[Date "2024.06.18"]
[Round "3"]
[White "masnyszachistaaa"]
[Black "kyuotbi"]
[Result "1-0"]
[WhiteElo "2578"]
[BlackElo "2314"]
[TimeControl "180+1"]
[EndTime "8:29:38 PDT"]
[Termination "masnyszachistaaa won by resignation"]

1. c4 {[%clk 0:03:00.9]} 1... e5 {[%clk 0:02:58.1]} 2. g3 {[%clk 0:02:57.8]}
2... Nc6 {[%clk 0:02:57]} 3. Bg2 {[%clk 0:02:57]} 3... f5 {[%clk 0:02:56.6]} 4.
Nc3 {[%clk 0:02:54.7]} 4... Nf6 {[%clk 0:02:56.7]} 5. d3 {[%clk 0:02:54.2]} 5...
Bc5 {[%clk 0:02:55.8]} 6. e3 {[%clk 0:02:47.6]} 6... O-O {[%clk 0:02:54]} 7.
Nge2 {[%clk 0:02:42.8]} 7... d6 {[%clk 0:02:32.8]} 8. O-O {[%clk 0:02:29.2]}
8... a5 {[%clk 0:02:29.8]} 9. Rb1 {[%clk 0:02:00.4]} 9... Ba7 {[%clk 0:02:22.1]}
10. a3 {[%clk 0:01:43.1]} 10... Qe8 {[%clk 0:02:11.4]} 11. b4 {[%clk 0:01:37.3]}
11... Qh5 {[%clk 0:02:03.4]} 12. Nd5 {[%clk 0:01:20.5]} 12... Nxd5 {[%clk
0:01:59.5]} 13. cxd5 {[%clk 0:01:14]} 13... Ne7 {[%clk 0:01:55]} 14. Nc3 {[%clk
0:01:08.8]} 14... Qg6 {[%clk 0:01:35.3]} 15. bxa5 {[%clk 0:00:57.4]} 15... f4
{[%clk 0:01:13.7]} 16. exf4 {[%clk 0:00:48.3]} 16... exf4 {[%clk 0:01:11.5]} 17.
Bxf4 {[%clk 0:00:49.2]} 17... Rxf4 {[%clk 0:01:04.9]} 18. gxf4 {[%clk
0:00:50.1]} 18... Nf5 {[%clk 0:01:02.8]} 19. Qf3 {[%clk 0:00:44.5]} 19... Nd4
{[%clk 0:00:20.9]} 20. Qg3 {[%clk 0:00:40.6]} 20... Qf7 {[%clk 0:00:18.3]} 21.
Rfe1 {[%clk 0:00:35.7]} 21... Bc5 {[%clk 0:00:18.1]} 22. Nb5 {[%clk 0:00:20.2]}
22... Nf5 {[%clk 0:00:11.7]} 23. Qg5 {[%clk 0:00:13.2]} 23... Bd7 {[%clk
0:00:06.1]} 24. Nxc7 {[%clk 0:00:13]} 24... Rc8 {[%clk 0:00:05.7]} 25. Ne6
{[%clk 0:00:13.2]} 25... Bxe6 {[%clk 0:00:03]} 26. dxe6 {[%clk 0:00:13.1]} 26...
Qf6 {[%clk 0:00:03.2]} 27. Qxf6 {[%clk 0:00:12.8]} 27... gxf6 {[%clk 0:00:03.7]}
28. Bxb7 {[%clk 0:00:10.2]} 28... Re8 {[%clk 0:00:03.4]} 29. a6 {[%clk
0:00:09.9]} 29... Nd4 {[%clk 0:00:03.4]} 30. e7 {[%clk 0:00:07.4]} 30... Kf7
{[%clk 0:00:02.9]} 31. Rbc1 {[%clk 0:00:07.5]} 1-0

[Event "Early-Titled-Tuesday-Blitz-June-18-2024"]
[Site "Chess.com"]
[Date "2024.06.18"]
[Round "3"]
[White "Yaacovn"]
[Black "manitodeplomo"]
[Result "0-1"]
[WhiteElo "2851"]
[BlackElo "2654"]
[TimeControl "180+1"]
[EndTime "8:29:39 PDT"]
[Termination "manitodeplomo won on time"]

1. d4 {[%clk 0:02:38.2]} 1... d5 {[%clk 0:02:59.5]} 2. Nf3 {[%clk 0:02:37.1]}
2... c6 {[%clk 0:02:59.5]} 3. c4 {[%clk 0:02:37]} 3... dxc4 {[%clk 0:02:58.9]}
4. a4 {[%clk 0:02:36.5]} 4... e6 {[%clk 0:02:56.2]} 5. Na3 {[%clk 0:02:33.7]}
5... Bxa3 {[%clk 0:02:47.4]} 6. bxa3 {[%clk 0:02:26.9]} 6... Nf6 {[%clk
0:02:18.3]} 7. Qc2 {[%clk 0:02:25]} 7... O-O {[%clk 0:02:16.1]} 8. Qxc4 {[%clk
0:02:22.2]} 8... b6 {[%clk 0:02:16.4]} 9. Qc2 {[%clk 0:02:20.5]} 9... Ba6 {[%clk
0:02:15.1]} 10. g3 {[%clk 0:02:20.4]} 10... Nbd7 {[%clk 0:01:45.2]} 11. Bg2
{[%clk 0:02:19.9]} 11... Rc8 {[%clk 0:01:41.8]} 12. O-O {[%clk 0:02:19.4]} 12...
c5 {[%clk 0:01:41.8]} 13. Qd1 {[%clk 0:01:52.1]} 13... Ne4 {[%clk 0:01:15.5]}
14. Bd2 {[%clk 0:01:42.2]} 14... Qe7 {[%clk 0:00:54.6]} 15. a5 {[%clk
0:01:34.3]} 15... Rfd8 {[%clk 0:00:51.2]} 16. axb6 {[%clk 0:01:33.6]} 16... axb6
{[%clk 0:00:49.9]} 17. Be1 {[%clk 0:01:26.2]} 17... Ndf6 {[%clk 0:00:42.2]} 18.
Ra2 {[%clk 0:01:08.5]} 18... cxd4 {[%clk 0:00:37.3]} 19. Nxd4 {[%clk 0:00:57.8]}
19... e5 {[%clk 0:00:26.8]} 20. Nf5 {[%clk 0:00:50.1]} 20... Qe6 {[%clk
0:00:25.2]} 21. Qa4 {[%clk 0:00:50]} 21... Bc4 {[%clk 0:00:16.3]} 22. Ne3 {[%clk
0:00:14.1]} 22... Bxa2 {[%clk 0:00:12.3]} 23. Bxe4 {[%clk 0:00:13.8]} 23... Rd4
{[%clk 0:00:07.4]} 24. Qa6 {[%clk 0:00:07]} 24... Nxe4 {[%clk 0:00:06.4]} 25.
Bb4 {[%clk 0:00:04.9]} 25... Nc5 {[%clk 0:00:05.2]} 26. Qa7 {[%clk 0:00:04.2]}
26... Bd5 {[%clk 0:00:04.4]} 27. f3 {[%clk 0:00:02.9]} 27... Ba8 {[%clk
0:00:02]} 28. g4 {[%clk 0:00:02.8]} 28... g6 {[%clk 0:00:01.5]} 29. Rc1 {[%clk
0:00:01.7]} 29... Rd7 {[%clk 0:00:01.4]} 0-1

[Event "Early-Titled-Tuesday-Blitz-June-18-2024"]
[Site "Chess.com"]
[Date "2024.06.18"]
[Round "3"]
[White "bascheyaro"]
[Black "santosalberto1987"]
[Result "1-0"]
[WhiteElo "2806"]
[BlackElo "2596"]
[TimeControl "180+1"]
[EndTime "8:29:39 PDT"]
[Termination "bascheyaro won by resignation"]

1. d4 {[%clk 0:03:00.9]} 1... Nf6 {[%clk 0:02:59.7]} 2. c4 {[%clk 0:03:00.6]}
2... d6 {[%clk 0:02:59.9]} 3. Nf3 {[%clk 0:03:00.7]} 3... g6 {[%clk 0:02:59.5]}
4. Nc3 {[%clk 0:03:01]} 4... Bf5 {[%clk 0:02:59.7]} 5. Bf4 {[%clk 0:03:01]} 5...
Bg7 {[%clk 0:02:59.1]} 6. e3 {[%clk 0:03:01.3]} 6... O-O {[%clk 0:02:59]} 7. h3
{[%clk 0:03:00.3]} 7... c5 {[%clk 0:02:56.4]} 8. d5 {[%clk 0:02:59.3]} 8... Na6
{[%clk 0:02:52.8]} 9. Be2 {[%clk 0:02:52.6]} 9... Ne4 {[%clk 0:02:49.1]} 10.
Nxe4 {[%clk 0:02:48.3]} 10... Bxe4 {[%clk 0:02:50]} 11. Ng5 {[%clk 0:02:23.9]}
11... Qa5+ {[%clk 0:02:43]} 12. Qd2 {[%clk 0:02:23.8]} 12... Qxd2+ {[%clk
0:02:40.2]} 13. Kxd2 {[%clk 0:02:24.7]} 13... Bf5 {[%clk 0:02:29.4]} 14. g4
{[%clk 0:02:15.3]} 14... Bd7 {[%clk 0:02:26.9]} 15. Rab1 {[%clk 0:02:14.5]}
15... Nc7 {[%clk 0:02:22.1]} 16. b4 {[%clk 0:02:11.4]} 16... cxb4 {[%clk
0:02:21.7]} 17. Rxb4 {[%clk 0:02:10.2]} 17... b6 {[%clk 0:02:21.2]} 18. Rbb1
{[%clk 0:01:59.3]} 18... Na6 {[%clk 0:02:18.7]} 19. h4 {[%clk 0:01:56.6]} 19...
Nc5 {[%clk 0:02:17.3]} 20. f3 {[%clk 0:01:45.9]} 20... Rab8 {[%clk 0:02:08]} 21.
Ne4 {[%clk 0:01:40.8]} 21... Nxe4+ {[%clk 0:02:07.2]} 22. fxe4 {[%clk
0:01:41.7]} 22... Bc8 {[%clk 0:01:59.1]} 23. c5 {[%clk 0:01:40.9]} 23... e5
{[%clk 0:01:28.2]} 24. dxe6 {[%clk 0:01:40.5]} 24... Bxe6 {[%clk 0:01:28.6]} 25.
Bxd6 {[%clk 0:01:19.3]} 25... Rfd8 {[%clk 0:01:28.2]} 26. Ke1 {[%clk 0:01:08.1]}
26... Rbc8 {[%clk 0:01:27.8]} 27. Ba6 {[%clk 0:01:06.7]} 27... Rc6 {[%clk
0:01:18.1]} 28. Bb7 {[%clk 0:01:06.1]} 28... Rcxd6 {[%clk 0:01:18.2]} 29. cxd6
{[%clk 0:01:05.8]} 29... Rxd6 {[%clk 0:01:19.1]} 30. Bd5 {[%clk 0:00:47.2]}
30... Bxd5 {[%clk 0:01:14.7]} 31. exd5 {[%clk 0:00:47.2]} 31... Rxd5 {[%clk
0:01:14.3]} 32. Rd1 {[%clk 0:00:40.5]} 32... Ra5 {[%clk 0:01:11.5]} 33. Rd8+
{[%clk 0:00:40]} 33... Bf8 {[%clk 0:01:11.7]} 34. Rh2 {[%clk 0:00:39.9]} 34...
Kg7 {[%clk 0:01:10.4]} 35. h5 {[%clk 0:00:37.6]} 35... Bb4+ {[%clk 0:01:06.8]}
36. Kf1 {[%clk 0:00:36.7]} 36... Rc5 {[%clk 0:00:50.9]} 37. h6+ {[%clk
0:00:30.3]} 37... Kf6 {[%clk 0:00:50.7]} 38. Rh8 {[%clk 0:00:30]} 38... Rc1+
{[%clk 0:00:39.1]} 39. Kg2 {[%clk 0:00:29.8]} 39... Bd6 {[%clk 0:00:38]} 40. Rh3
{[%clk 0:00:28.9]} 40... Rc2+ {[%clk 0:00:32.7]} 41. Kf3 {[%clk 0:00:28.3]}
41... Rxa2 {[%clk 0:00:32.7]} 42. Rxh7 {[%clk 0:00:27.9]} 42... Be5 {[%clk
0:00:33.3]} 43. g5+ {[%clk 0:00:24.7]} 43... Ke6 {[%clk 0:00:32.8]} 44. Rg7
{[%clk 0:00:22.2]} 44... a5 {[%clk 0:00:29.9]} 45. Rg8 {[%clk 0:00:20.5]} 45...
a4 {[%clk 0:00:30]} 46. Re8+ {[%clk 0:00:20.8]} 46... Kd6 {[%clk 0:00:28.7]} 47.
Rxe5 {[%clk 0:00:21.7]} 47... Kxe5 {[%clk 0:00:28.8]} 48. h7 {[%clk 0:00:22.2]}
1-0

[Event "Early-Titled-Tuesday-Blitz-June-18-2024"]
[Site "Chess.com"]
[Date "2024.06.18"]
[Round "3"]
[White "Lucky_Puncher"]
[Black "salomez"]
[Result "1-0"]
[WhiteElo "2608"]
[BlackElo "2363"]
[TimeControl "180+1"]
[EndTime "8:29:39 PDT"]
[Termination "Lucky_Puncher won by checkmate"]

1. d4 {[%clk 0:02:59.6]} 1... Nf6 {[%clk 0:02:59.6]} 2. c4 {[%clk 0:02:57.8]}
2... g6 {[%clk 0:03:00.5]} 3. Nc3 {[%clk 0:02:56.7]} 3... Bg7 {[%clk 0:03:01.4]}
4. e4 {[%clk 0:02:56.6]} 4... d6 {[%clk 0:03:01.3]} 5. Nf3 {[%clk 0:02:56.8]}
5... Nbd7 {[%clk 0:02:58]} 6. Be2 {[%clk 0:02:57.1]} 6... e5 {[%clk 0:02:54.5]}
7. O-O {[%clk 0:02:56.5]} 7... O-O {[%clk 0:02:54.6]} 8. d5 {[%clk 0:02:49.8]}
8... a5 {[%clk 0:02:48.6]} 9. Ne1 {[%clk 0:02:47.9]} 9... Nc5 {[%clk 0:02:46.8]}
10. Qc2 {[%clk 0:02:46.4]} 10... Nfd7 {[%clk 0:02:39.3]} 11. Be3 {[%clk
0:02:44.3]} 11... f5 {[%clk 0:02:39.1]} 12. f3 {[%clk 0:02:44.6]} 12... f4
{[%clk 0:02:38.9]} 13. Bf2 {[%clk 0:02:44.8]} 13... g5 {[%clk 0:02:38.9]} 14.
Nd3 {[%clk 0:02:39.5]} 14... Nxd3 {[%clk 0:02:37]} 15. Qxd3 {[%clk 0:02:39.7]}
15... Nc5 {[%clk 0:02:31.9]} 16. Qd1 {[%clk 0:02:39.7]} 16... h5 {[%clk
0:02:27.8]} 17. b3 {[%clk 0:02:36.7]} 17... b6 {[%clk 0:02:12.1]} 18. a3 {[%clk
0:02:36.3]} 18... Bd7 {[%clk 0:02:12.2]} 19. Rb1 {[%clk 0:02:36.1]} 19... a4
{[%clk 0:01:55.4]} 20. b4 {[%clk 0:02:35.6]} 20... Nb3 {[%clk 0:01:55.6]} 21.
Nb5 {[%clk 0:02:33.6]} 21... Qc8 {[%clk 0:01:27.4]} 22. c5 {[%clk 0:02:16.5]}
22... bxc5 {[%clk 0:01:07.4]} 23. bxc5 {[%clk 0:02:16.4]} 23... Ra5 {[%clk
0:01:01.4]} 24. c6 {[%clk 0:02:03.8]} 24... Be8 {[%clk 0:00:54.7]} 25. Qe1
{[%clk 0:01:48.4]} 25... Ra8 {[%clk 0:00:48.3]} 26. Qb4 {[%clk 0:01:36.2]} 26...
g4 {[%clk 0:00:44.9]} 27. Kh1 {[%clk 0:01:29.1]} 27... Bg6 {[%clk 0:00:43.2]}
28. Bg3 {[%clk 0:01:23.2]} 28... fxg3 {[%clk 0:00:42.3]} 29. hxg3 {[%clk
0:01:23.6]} 29... Nd4 {[%clk 0:00:27.2]} 30. Nxd4 {[%clk 0:01:04.8]} 30... exd4
{[%clk 0:00:28.1]} 31. Kh2 {[%clk 0:01:02.8]} 31... Be5 {[%clk 0:00:27]} 32. f4
{[%clk 0:00:59.9]} 32... Bg7 {[%clk 0:00:20.2]} 33. Bd3 {[%clk 0:01:00]} 33...
Re8 {[%clk 0:00:18.1]} 34. f5 {[%clk 0:00:57.7]} 34... Bf7 {[%clk 0:00:15.8]}
35. f6 {[%clk 0:00:57.1]} 35... Bh6 {[%clk 0:00:15.6]} 36. Qxd4 {[%clk
0:00:56.3]} 36... Qd8 {[%clk 0:00:15.1]} 37. Rf5 {[%clk 0:00:54.2]} 37... Bg6
{[%clk 0:00:13.3]} 38. Rbf1 {[%clk 0:00:46.5]} 38... Kf7 {[%clk 0:00:12.9]} 39.
e5 {[%clk 0:00:44.2]} 39... dxe5 {[%clk 0:00:12.8]} 40. Rxe5 {[%clk 0:00:41.2]}
40... Rxe5 {[%clk 0:00:10.5]} 41. Bxg6+ {[%clk 0:00:39.3]} 41... Kxg6 {[%clk
0:00:09.5]} 42. Qxe5 {[%clk 0:00:40]} 42... Qg8 {[%clk 0:00:01.6]} 43. f7 {[%clk
0:00:37.3]} 43... Qg7 {[%clk 0:00:01.2]} 44. Qf5# {[%clk 0:00:37.1]} 1-0

[Event "Early-Titled-Tuesday-Blitz-June-18-2024"]
[Site "Chess.com"]
[Date "2024.06.18"]
[Round "3"]
[White "Chxss_Khxsbu"]
[Black "Keeper0416"]
[Result "0-1"]
[WhiteElo "1770"]
[BlackElo "2546"]
[TimeControl "180+1"]
[EndTime "8:29:39 PDT"]
[Termination "Keeper0416 won by checkmate"]

1. e4 {[%clk 0:02:45]} 1... e5 {[%clk 0:02:59.8]} 2. Nf3 {[%clk 0:02:44.9]} 2...
Nc6 {[%clk 0:03:00.4]} 3. Bb5 {[%clk 0:02:44.7]} 3... a6 {[%clk 0:03:00]} 4. Ba4
{[%clk 0:02:44.7]} 4... Nf6 {[%clk 0:03:00.2]} 5. O-O {[%clk 0:02:44]} 5... b5
{[%clk 0:03:00.8]} 6. Bb3 {[%clk 0:02:43.3]} 6... Bc5 {[%clk 0:03:01.5]} 7. a4
{[%clk 0:02:41.7]} 7... Rb8 {[%clk 0:02:59]} 8. d3 {[%clk 0:02:40.9]} 8... d6
{[%clk 0:02:59.1]} 9. Bg5 {[%clk 0:02:40.1]} 9... h6 {[%clk 0:02:58.1]} 10. Be3
{[%clk 0:02:37.9]} 10... Bg4 {[%clk 0:02:47.7]} 11. Nbd2 {[%clk 0:02:25.8]}
11... Nd4 {[%clk 0:02:39.8]} 12. h3 {[%clk 0:02:22.3]} 12... Bxf3 {[%clk
0:02:35]} 13. Nxf3 {[%clk 0:02:20.8]} 13... Nxb3 {[%clk 0:02:35.4]} 14. cxb3
{[%clk 0:02:19]} 14... Bxe3 {[%clk 0:02:35.5]} 15. fxe3 {[%clk 0:02:19.8]} 15...
O-O {[%clk 0:02:35.7]} 16. Qc2 {[%clk 0:02:13.1]} 16... c5 {[%clk 0:02:29.1]}
17. b4 {[%clk 0:02:11.9]} 17... cxb4 {[%clk 0:02:16.6]} 18. axb5 {[%clk
0:02:08.6]} 18... axb5 {[%clk 0:02:12.3]} 19. Qb3 {[%clk 0:02:07.9]} 19... Qb6
{[%clk 0:02:09.7]} 20. Rfe1 {[%clk 0:02:05.3]} 20... Ra8 {[%clk 0:02:03.9]} 21.
Rxa8 {[%clk 0:01:59.1]} 21... Rxa8 {[%clk 0:02:04.8]} 22. Qxb4 {[%clk 0:01:59]}
22... Rc8 {[%clk 0:01:54.8]} 23. Kh2 {[%clk 0:01:38.7]} 23... Rc2 {[%clk
0:01:34.2]} 24. Qb3 {[%clk 0:00:48.1]} 24... Rc7 {[%clk 0:01:27]} 25. Ra1 {[%clk
0:00:41.4]} 25... Qxe3 {[%clk 0:01:12.5]} 26. Qxb5 {[%clk 0:00:41.1]} 26... Rc2
{[%clk 0:01:11.8]} 27. Qb3 {[%clk 0:00:34.1]} 27... Re2 {[%clk 0:01:03.2]} 28.
Kh1 {[%clk 0:00:30.2]} 28... Qf2 {[%clk 0:00:56.8]} 29. Qb8+ {[%clk 0:00:28.4]}
29... Kh7 {[%clk 0:00:55.9]} 30. Rg1 {[%clk 0:00:28.5]} 30... Nh5 {[%clk
0:00:53.3]} 31. Qxd6 {[%clk 0:00:24.1]} 31... Ng3+ {[%clk 0:00:51.9]} 32. Kh2
{[%clk 0:00:22.9]} 32... Nf1+ {[%clk 0:00:50.4]} 33. Kh1 {[%clk 0:00:21.7]}
33... Qxf3 {[%clk 0:00:50.4]} 34. Qxe5 {[%clk 0:00:18.4]} 34... Qf2 {[%clk
0:00:29.1]} 35. d4 {[%clk 0:00:17.4]} 35... Ng3+ {[%clk 0:00:27.2]} 36. Kh2
{[%clk 0:00:17.2]} 36... Nxe4 {[%clk 0:00:25.8]} 37. d5 {[%clk 0:00:15.2]} 37...
Ng5 {[%clk 0:00:22]} 38. Qg3 {[%clk 0:00:14.9]} 38... Nf3+ {[%clk 0:00:21.8]}
39. Kh1 {[%clk 0:00:13.3]} 39... Qxg1# {[%clk 0:00:20.3]} 0-1

[Event "Early-Titled-Tuesday-Blitz-June-18-2024"]
[Site "Chess.com"]
[Date "2024.06.18"]
[Round "3"]
[White "HelenaWalker2912"]
[Black "Kgli1m"]
[Result "1-0"]
[WhiteElo "2406"]
[BlackElo "2094"]
[TimeControl "180+1"]
[EndTime "8:29:39 PDT"]
[Termination "HelenaWalker2912 won by resignation"]

1. d4 {[%clk 0:03:00.9]} 1... d5 {[%clk 0:02:59.5]} 2. c4 {[%clk 0:02:59.8]}
2... c6 {[%clk 0:02:59.6]} 3. Nf3 {[%clk 0:02:59.6]} 3... a6 {[%clk 0:02:59.4]}
4. a4 {[%clk 0:02:57.4]} 4... Nf6 {[%clk 0:02:57.9]} 5. Nc3 {[%clk 0:02:57.2]}
5... Be6 {[%clk 0:02:50.7]} 6. cxd5 {[%clk 0:02:50.9]} 6... Nxd5 {[%clk
0:02:32.9]} 7. e4 {[%clk 0:02:50.4]} 7... Nxc3 {[%clk 0:02:31.6]} 8. bxc3 {[%clk
0:02:51.3]} 8... Bg4 {[%clk 0:02:31.7]} 9. Be2 {[%clk 0:02:49.8]} 9... e6 {[%clk
0:02:31.2]} 10. O-O {[%clk 0:02:49.5]} 10... Be7 {[%clk 0:02:29.3]} 11. h3
{[%clk 0:02:49.6]} 11... Bxf3 {[%clk 0:02:26.7]} 12. Bxf3 {[%clk 0:02:50.5]}
12... O-O {[%clk 0:02:26.2]} 13. Be3 {[%clk 0:02:33.8]} 13... Qc7 {[%clk
0:01:59.2]} 14. Qe2 {[%clk 0:02:33.5]} 14... Nd7 {[%clk 0:01:56.6]} 15. Rab1
{[%clk 0:02:31.6]} 15... Rab8 {[%clk 0:01:50.5]} 16. Rfd1 {[%clk 0:02:30.6]}
16... b5 {[%clk 0:01:50.2]} 17. axb5 {[%clk 0:02:28.9]} 17... cxb5 {[%clk
0:01:48.4]} 18. Ra1 {[%clk 0:01:46]} 18... a5 {[%clk 0:01:46.8]} 19. Rab1 {[%clk
0:01:34.6]} 19... b4 {[%clk 0:01:46.1]} 20. cxb4 {[%clk 0:01:33.7]} 20... Bxb4
{[%clk 0:01:45.5]} 21. d5 {[%clk 0:01:33.5]} 21... e5 {[%clk 0:01:27.9]} 22.
Rdc1 {[%clk 0:01:31.5]} 22... Qb7 {[%clk 0:01:17.3]} 23. Bg4 {[%clk 0:01:26.8]}
23... Rfc8 {[%clk 0:01:13.7]} 24. Rc2 {[%clk 0:01:11]} 24... Rxc2 {[%clk
0:01:13.2]} 25. Qxc2 {[%clk 0:01:11.9]} 25... Rc8 {[%clk 0:00:56.5]} 26. Qa4
{[%clk 0:01:11.1]} 26... Nf6 {[%clk 0:00:53.4]} 27. Bxc8 {[%clk 0:01:09.7]}
27... Qxc8 {[%clk 0:00:52.9]} 28. Rc1 {[%clk 0:01:09]} 28... Qb8 {[%clk
0:00:42.4]} 29. Qc6 {[%clk 0:00:35.7]} 29... h6 {[%clk 0:00:41.8]} 30. Qc8+
{[%clk 0:00:35.4]} 30... Qxc8 {[%clk 0:00:42.1]} 31. Rxc8+ {[%clk 0:00:36.3]}
31... Kh7 {[%clk 0:00:42.8]} 32. f3 {[%clk 0:00:36.7]} 32... g5 {[%clk
0:00:19.2]} 33. Ra8 {[%clk 0:00:35.3]} 33... Kg6 {[%clk 0:00:18.8]} 34. Bb6
{[%clk 0:00:34.7]} 34... Nd7 {[%clk 0:00:18.4]} 35. Bxa5 {[%clk 0:00:34.5]}
35... Bxa5 {[%clk 0:00:18.4]} 36. Rxa5 {[%clk 0:00:35.4]} 36... Kf6 {[%clk
0:00:19.3]} 37. Ra6+ {[%clk 0:00:35.2]} 37... Ke7 {[%clk 0:00:16.2]} 38. Rxh6
{[%clk 0:00:35.1]} 38... f6 {[%clk 0:00:14]} 39. Rh7+ {[%clk 0:00:34.1]} 39...
Ke8 {[%clk 0:00:13.7]} 40. d6 {[%clk 0:00:32.3]} 40... Nc5 {[%clk 0:00:13.4]}
41. Kf2 {[%clk 0:00:31.4]} 41... Ne6 {[%clk 0:00:13.8]} 42. Re7+ {[%clk
0:00:31]} 1-0